fUSD/lending_fUSD_20260502
["ID","MTS","AMOUNT","RATE_DAILY","PERIOD"]
[421456293,1777696244000,-500.0,0.00014299,2]
[421456294,1777696244000,-1210.78842952,0.00014299,2]
[421456296,1777696244000,-1210.78842952,0.00014299,2]
[421456298,1777696244000,-1210.78842952,0.00014299,2]
[421456308,1777696244000,-1210.78842952,0.00014299,2]
[421456309,1777696244000,-1210.78842952,0.00014299,2]
[421456297,1777696244000,-500.0,0.00014299,2]
[421456300,1777696244000,-1210.78842952,0.00014299,2]
[421456301,1777696244000,-500.0,0.00014299,2]
[421456299,1777696244000,-500.0,0.00014299,2]
[421456302,1777696244000,-1210.78842952,0.00014299,2]
[421456304,1777696244000,-1210.78842952,0.00014299,2]
[421456303,1777696244000,-500.0,0.00014299,2]
[421456306,1777696244000,-1210.78842952,0.00014299,2]
[421456307,1777696244000,-1210.78842952,0.00014299,2]
[421456311,1777696244000,-1210.78842952,0.00014299,2]
[421456310,1777696244000,-500.0,0.00014299,2]
[421456313,1777696244000,-1210.78842952,0.00014299,2]
[421456330,1777696244000,-500.0,0.00014299,2]
[421456345,1777696244000,-1210.78842952,0.00014299,2]
[421456368,1777696244000,-1210.78842952,0.00014299,2]
[421456362,1777696244000,-1210.78842952,0.00014299,2]
[421456359,1777696244000,-1210.78842952,0.00014299,2]
[421456365,1777696244000,-1210.78842952,0.00014299,2]
[421456364,1777696244000,-1210.78842952,0.00014299,2]
[421456361,1777696244000,-1210.78842952,0.00014299,2]
[421456363,1777696244000,-500.0,0.00014299,2]
[421456369,1777696244000,-1210.78842952,0.00014299,2]
[421456371,1777696244000,-1210.78842952,0.00014299,2]
[421456372,1777696244000,-1210.78842952,0.00014299,2]
[421456382,1777696244000,-500.0,0.00014299,2]
[421456373,1777696244000,-1210.78842952,0.00014299,2]
[421456374,1777696244000,-1210.78842952,0.00014299,2]
[421456375,1777696244000,-500.0,0.00014299,2]
[421456380,1777696244000,-500.0,0.00014299,2]
[421456376,1777696244000,-1184.46694193,0.00014299,2]
[421456381,1777696244000,-1184.46694193,0.00014299,2]
[421456378,1777696244000,-1184.46694193,0.00014299,2]
[421456377,1777696244000,-500.0,0.00014299,2]
[421456337,1777696244000,-1210.78842952,0.00014299,2]
[421456366,1777696244000,-1210.78842952,0.00014299,2]
[421456370,1777696244000,-1210.78842952,0.00014299,2]
[421456367,1777696244000,-212.89078699,0.00014299,2]
[421456357,1777696244000,-500.0,0.00014299,2]
[421456338,1777696244000,-500.0,0.00014299,2]
[421456346,1777696244000,-500.0,0.00014299,2]
[421456339,1777696244000,-1210.78842952,0.00014299,2]
[421456340,1777696244000,-1210.78842952,0.00014299,2]
[421456336,1777696244000,-500.0,0.00014299,2]
[421456341,1777696244000,-1210.78842952,0.00014299,2]
[421456343,1777696244000,-1210.78842952,0.00014299,2]
[421456360,1777696244000,-500.0,0.00014299,2]
[421456344,1777696244000,-500.0,0.00014299,2]
[421456348,1777696244000,-1210.78842952,0.00014299,2]
[421456351,1777696244000,-1210.78842952,0.00014299,2]
[421456342,1777696244000,-1210.78842952,0.00014299,2]
[421456355,1777696244000,-500.0,0.00014299,2]
[421456349,1777696244000,-1210.78842952,0.00014299,2]
[421456356,1777696244000,-1210.78842952,0.00014299,2]
[421456352,1777696244000,-1210.78842952,0.00014299,2]
[421456347,1777696244000,-500.0,0.00014299,2]
[421456358,1777696244000,-1210.78842952,0.00014299,2]
[421456353,1777696244000,-500.0,0.00014299,2]
[421456354,1777696244000,-1210.78842952,0.00014299,2]
[421456350,1777696244000,-500.0,0.00014299,2]
[421456444,1777696245000,-161.0,0.0002,2]
[421456443,1777696245000,-520.0,0.0002,2]
[421456454,1777696245000,-964.0,0.00020692,7]
[421456451,1777696245000,-200.0,0.00020617,2]
[421456441,1777696245000,-536.49695808,0.0002,7]
[421456453,1777696245000,-300.0,0.00020682,7]
[421456442,1777696245000,-600.0,0.0002,2]
[421456448,1777696245000,-155.0,0.0002,2]
[421456446,1777696245000,-344.0,0.0002,2]
[421456449,1777696245000,-157.0,0.0002,2]
[421456460,1777696245000,-520.0,0.00021,2]
[421456450,1777696245000,-200.0,0.00020472,2]
[421456445,1777696245000,-154.0,0.0002,2]
[421456452,1777696245000,-1050.0,0.00020682,2]
[421456456,1777696245000,-2000.0,0.00020808,2]
[421456458,1777696245000,-150.0,0.00020882,2]
[421456455,1777696245000,-503.0,0.00020692,7]
[421456459,1777696245000,-160.0,0.00021,7]
[421456457,1777696245000,-178.05,0.00020863,2]
[421456438,1777696245000,-178.05,0.00018966,2]
[421456447,1777696245000,-597.0,0.0002,2]
[421456440,1777696245000,-2979.71327296,0.0002,7]
[421456420,1777696245000,-10487.1490735,0.0001653,2]
[421456439,1777696245000,-161.20711472,0.0001978,2]
[421456419,1777696245000,-690.6140373,0.0001653,2]
[421456418,1777696245000,-703.4789,0.0001643,2]
[421456416,1777696245000,-3316.0061935,0.00016283,2]
[421456417,1777696245000,-346.69459554,0.00016382,2]
[421456421,1777696245000,-12386.2807839,0.0001653,2]
[421456422,1777696245000,-1894.9662146,0.0001653,2]
[421456424,1777696245000,-2347.0,0.0001672,2]
[421456423,1777696245000,-161.20711471,0.00016665,2]
[421456425,1777696245000,-2347.0,0.0001672,2]
[421456437,1777696245000,-161.20711471,0.00018742,2]
[421456427,1777696245000,-838.75,0.00016922,2]
[421456430,1777696245000,-277.77778,0.0001715,2]
[421456426,1777696245000,-6441.59,0.00016922,2]
[421456431,1777696245000,-277.77778,0.0001715,2]
[421456429,1777696245000,-277.77777,0.0001715,2]
[421456432,1777696245000,-277.77778,0.0001715,2]
[421456436,1777696245000,-502.0,0.00018329,2]
[421456434,1777696245000,-277.77778,0.0001715,2]
[421456435,1777696245000,-161.20711471,0.00017704,2]
[421456433,1777696245000,-277.77777,0.0001715,2]
[421456428,1777696245000,-178.05,0.0001707,2]
[421456465,1777696245000,-300.0,0.00021682,7]
[421456478,1777696245000,-178.05,0.0002276,2]
[421456461,1777696245000,-154.0,0.00021,2]
[421456488,1777696245000,-332.02,0.0002411,2]
[421456489,1777696245000,-3853.64735726,0.00024383,84]
[421456492,1777696245000,-1118.0,0.00024659,2]
[421456491,1777696245000,-152.62741515,0.00024658,2]
[421456493,1777696245000,-704.87,0.00024856,2]
[421456495,1777696245000,-2500.0,0.00024895,2]
[421456490,1777696245000,-1000.0,0.00024658,2]
[421456494,1777696245000,-1546.61106957,0.00024893,2]
[421456496,1777696245000,-889.73168857,0.000249,2]
[421456479,1777696245000,-646.67679999,0.00023,7]
[421456499,1777696245000,-500.0,0.00024992,2]
[421456500,1777696245000,-492.03517683,0.00024992,2]
[421456501,1777696245000,-500.0,0.00024992,2]
[421456505,1777696245000,-531.79377009,0.00024992,2]
[421456502,1777696245000,-500.0,0.00024992,2]
[421456506,1777696245000,-500.0,0.00024992,2]
[421456503,1777696245000,-500.0,0.00024992,2]
[421456504,1777696245000,-500.0,0.00024992,2]
[421456507,1777696245000,-258.07852504,0.00024992,2]
[421456464,1777696245000,-157.0,0.00021,2]
[421456498,1777696245000,-500.0,0.00024992,2]
[421456485,1777696245000,-169.28,0.00023947,2]
[421456497,1777696245000,-150.0,0.00024973,2]
[421456487,1777696245000,-344.0,0.00024,2]
[421456463,1777696245000,-155.0,0.00021,2]
[421456467,1777696245000,-5000.0,0.00021918,2]
[421456466,1777696245000,-1664.0,0.00021856,2]
[421456468,1777696245000,-261.75,0.00022,2]
[421456472,1777696245000,-200.0,0.000222,2]
[421456469,1777696245000,-810.8845036,0.00022,7]
[421456475,1777696245000,-196.06455115,0.00022407,2]
[421456470,1777696245000,-520.0,0.00022,2]
[421456473,1777696245000,-364.60570524,0.00022311,2]
[421456471,1777696245000,-344.0,0.00022,2]
[421456476,1777696245000,-196.06455115,0.00022407,2]
[421456474,1777696245000,-196.06455117,0.00022407,2]
[421456508,1777696245000,-55918.36611077,0.00025,7]
[421456483,1777696245000,-1118.0,0.00023485,2]
[421456486,1777696245000,-520.0,0.00024,2]
[421456481,1777696245000,-344.0,0.00023,2]
[421456477,1777696245000,-379.45,0.00022466,2]
[421456480,1777696245000,-520.0,0.00023,2]
[421456484,1777696245000,-2347.0,0.00023718,2]
[421456462,1777696245000,-344.0,0.00021,2]
[421456482,1777696245000,-2000.0,0.00023409,2]
[421456511,1777696301000,226.41914683,0.00010532,15]
[421456514,1777696539000,-192.0,0.00010532,3]
[421456516,1777697140000,-152.54650038,0.00010693,2]
[421456517,1777697350000,-368.2011645,0.00010693,2]
[421456518,1777697376000,1955.84,0.00028862,120]
[421456540,1777697431000,-151.0,0.00010694,2]
[421456548,1777697431000,-1587.44588413,0.00011762,2]
[421456550,1777697431000,-162.41759262,0.00012618,2]
[421456551,1777697431000,-300.0,0.00012871,2]
[421456529,1777697431000,-151.0,0.00010694,2]
[421456533,1777697431000,-151.0,0.00010694,2]
[421456530,1777697431000,-151.0,0.00010694,2]
[421456535,1777697431000,-151.0,0.00010694,2]
[421456537,1777697431000,-151.0,0.00010694,2]
[421456528,1777697431000,-151.0,0.00010694,2]
[421456527,1777697431000,-151.0,0.00010694,2]
[421456525,1777697431000,-151.0,0.00010694,2]
[421456526,1777697431000,-500.0,0.00010694,2]
[421456524,1777697431000,-151.0,0.00010694,2]
[421456523,1777697431000,-228.87102726,0.00010693,2]
[421456522,1777697431000,-450.12897274,0.00010693,2]
[421456538,1777697431000,-151.0,0.00010694,2]
[421456543,1777697431000,-153.15387297,0.00010694,2]
[421456539,1777697431000,-151.0,0.00010694,2]
[421456546,1777697431000,-255.0,0.00011737,2]
[421456542,1777697431000,-500.0,0.00010694,2]
[421456565,1777697431000,-1377.42282659,0.00022688,2]
[421456564,1777697431000,-695.39793187,0.00022688,2]
[421456557,1777697431000,-258.0,0.0002,2]
[421456559,1777697431000,-258.0,0.00021,2]
[421456560,1777697431000,-390.0,0.00022,2]
[421456558,1777697431000,-390.0,0.00021,2]
[421456561,1777697431000,-258.0,0.00022,2]
[421456555,1777697431000,-2443.82,0.000171,2]
[421456556,1777697431000,-390.0,0.0002,2]
[421456554,1777697431000,-273.1967,0.0001643,2]
[421456562,1777697431000,-578.20924308,0.00022688,2]
[421456553,1777697431000,-2443.82,0.000145,2]
[421456552,1777697431000,-250.0,0.00013,2]
[421456547,1777697431000,-2500.0,0.00011762,2]
[421456549,1777697431000,-2500.0,0.00011762,2]
[421456544,1777697431000,-150.0,0.00010699,2]
[421456563,1777697431000,-203.63556858,0.00022688,2]
[421456545,1777697431000,-70844.55842184,0.000107,2]
[421456604,1777697432000,-500.0,0.00023818,2]
[421456605,1777697432000,-500.0,0.00023818,2]
[421456607,1777697432000,-500.0,0.00023818,2]
[421456602,1777697432000,-500.0,0.00023818,2]
[421456600,1777697432000,-500.0,0.00023818,2]
[421456601,1777697432000,-500.0,0.00023818,2]
[421456599,1777697432000,-500.0,0.00023818,2]
[421456595,1777697432000,-372.91921523,0.00023784,2]
[421456597,1777697432000,-500.0,0.00023818,2]
[421456603,1777697432000,-500.0,0.00023818,2]
[421456610,1777697432000,-500.0,0.00023818,2]
[421456608,1777697432000,-500.0,0.00023818,2]
[421456616,1777697432000,-500.0,0.00023818,2]
[421456609,1777697432000,-500.0,0.00023818,2]
[421456612,1777697432000,-500.0,0.00023818,2]
[421456622,1777697432000,-500.0,0.00023818,2]
[421456617,1777697432000,-500.0,0.00023818,2]
[421456611,1777697432000,-500.0,0.00023818,2]
[421456614,1777697432000,-500.0,0.00023818,2]
[421456613,1777697432000,-500.0,0.00023818,2]
[421456615,1777697432000,-500.0,0.00023818,2]
[421456594,1777697432000,-175.64,0.00023699,2]
[421456620,1777697432000,-500.0,0.00023818,2]
[421456618,1777697432000,-500.0,0.00023818,2]
[421456621,1777697432000,-500.0,0.00023818,2]
[421456619,1777697432000,-500.0,0.00023818,2]
[421456606,1777697432000,-500.0,0.00023818,2]
[421456596,1777697432000,-197.1208812,0.00023784,2]
[421456583,1777697432000,-10272.10520533,0.00022853,2]
[421456592,1777697432000,-1955.84,0.00023408,2]
[421456567,1777697432000,-201.93286099,0.00022688,2]
[421456573,1777697432000,-156.587,0.00022688,2]
[421456572,1777697432000,-226.3839885,0.00022688,2]
[421456566,1777697432000,-9211.34798985,0.00022688,2]
[421456571,1777697432000,-151.0,0.00022688,2]
[421456570,1777697432000,-178.86467755,0.00022688,2]
[421456574,1777697432000,-196.88779802,0.00022688,2]
[421456568,1777697432000,-151.0,0.00022688,2]
[421456575,1777697432000,-203.82788628,0.00022688,2]
[421456569,1777697432000,-205.87337619,0.00022688,2]
[421456576,1777697432000,-1000.0,0.00022725,2]
[421456586,1777697432000,-258.0,0.00023,2]
[421456593,1777697432000,-260.06057053,0.00023485,2]
[421456579,1777697432000,-2000.0,0.00022757,2]
[421456581,1777697432000,-9905.5980765,0.00022798,2]
[421456580,1777697432000,-500.0,0.00022761,2]
[421456577,1777697432000,-9552.16786547,0.00022743,2]
[421456585,1777697432000,-390.0,0.00023,2]
[421456578,1777697432000,-151.0,0.00022743,2]
[421456584,1777697432000,-750.63224194,0.00022908,2]
[421456588,1777697432000,-1033.06,0.00023104,2]
[421456598,1777697432000,-500.0,0.00023818,2]
[421456587,1777697432000,-327.93,0.00023103,2]
[421456589,1777697432000,-166.0,0.00023144,2]
[421456590,1777697432000,-1428.38747117,0.00023236,2]
[421456591,1777697432000,-209.40437684,0.00023236,2]
[421456582,1777697432000,-150.0,0.00022799,2]
[421456626,1777697432000,-500.0,0.00023818,2]
[421456623,1777697432000,-500.0,0.00023818,2]
[421456624,1777697432000,-500.0,0.00023818,2]
[421456654,1777697432000,-166.0,0.00025054,2]
[421456659,1777697432000,-5000.0,0.00025618,2]
[421456658,1777697432000,-2000.0,0.00025602,2]
[421456662,1777697432000,-17470.25249107,0.0002589,5]
[421456661,1777697432000,-352.86137696,0.00025811,2]
[421456665,1777697432000,-166.66,0.00026321,2]
[421456667,1777697432000,-1000.0,0.00026488,2]
[421456664,1777697432000,-352.86137696,0.00026122,7]
[421456670,1777697432000,-261.75,0.000268,2]
[421456663,1777697432000,-500.0,0.00025914,2]
[421456666,1777697432000,-352.86137696,0.00026432,7]
[421456669,1777697432000,-352.86137696,0.00026743,14]
[421456671,1777697432000,-2443.82,0.000268,2]
[421456674,1777697432000,-832.96317184,0.00027123,2]
[421456676,1777697432000,-520.0,0.00027123,2]
[421456675,1777697432000,-728.0,0.00027123,2]
[421456683,1777697432000,-5200.82,0.00027397,10]
[421456673,1777697432000,-352.86137696,0.00027053,30]
[421456672,1777697432000,-166.0,0.00026964,2]
[421456677,1777697432000,-848.0,0.00027137,2]
[421456682,1777697432000,-6240.98,0.00027397,10]
[421456678,1777697432000,-352.86137696,0.00027364,60]
[421456679,1777697432000,-4491.06371595,0.0002739,7]
[421456680,1777697432000,-1500.0,0.00027397,2]
[421456681,1777697432000,-300.0,0.00027397,2]
[421456684,1777697432000,-4334.01,0.00027397,10]
[421456627,1777697432000,-531.66024558,0.00023818,2]
[421456656,1777697432000,-599.60298507,0.00025427,2]
[421456655,1777697432000,-5528.0,0.000252,5]
[421456668,1777697432000,-300.16957962,0.000265,3]
[421456653,1777697432000,-258.0,0.00025,2]
[421456628,1777697432000,-500.0,0.00023818,2]
[421456657,1777697432000,-732.85118466,0.00025427,2]
[421456625,1777697432000,-500.0,0.00023818,2]
[421456636,1777697432000,-511.94623227,0.00023818,2]
[421456630,1777697432000,-500.0,0.00023818,2]
[421456632,1777697432000,-500.0,0.00023818,2]
[421456635,1777697432000,-500.0,0.00023818,2]
[421456633,1777697432000,-500.0,0.00023818,2]
[421456634,1777697432000,-500.0,0.00023818,2]
[421456631,1777697432000,-500.0,0.00023818,2]
[421456638,1777697432000,-258.0,0.00024,2]
[421456646,1777697432000,-151.0946,0.0002474,2]
[421456645,1777697432000,-151.0946,0.0002474,2]
[421456637,1777697432000,-390.0,0.00024,2]
[421456629,1777697432000,-500.0,0.00023818,2]
[421456648,1777697432000,-2500.0,0.000249,2]
[421456660,1777697432000,-5387.0384,0.0002579,2]
[421456647,1777697432000,-200.0,0.00024792,2]
[421456650,1777697432000,-58564.5562344,0.00025,7]
[421456649,1777697432000,-151.0946,0.00024992,2]
[421456651,1777697432000,-540.2898303,0.00025,7]
[421456641,1777697432000,-2443.82,0.000245,2]
[421456652,1777697432000,-390.0,0.00025,2]
[421456644,1777697432000,-151.09459,0.0002474,2]
[421456639,1777697432000,-200.0,0.0002402,2]
[421456643,1777697432000,-1118.0,0.00024659,2]
[421456642,1777697432000,-5528.0,0.000245,3]
[421456640,1777697432000,-168.49,0.00024093,2]
[421456728,1777697433000,-355.38,0.00028788,30]
[421456724,1777697433000,-848.0,0.00028739,3]
[421456723,1777697433000,-355.38,0.00028725,2]
[421456726,1777697433000,-355.38,0.00028756,7]
[421456725,1777697433000,-355.13,0.00028756,7]
[421456709,1777697433000,-355.13,0.00028661,7]
[421456715,1777697433000,-633.30582873,0.00028692,2]
[421456718,1777697433000,-500.0,0.00028692,2]
[421456716,1777697433000,-500.0,0.00028692,2]
[421456713,1777697433000,-500.0,0.00028692,2]
[421456727,1777697433000,-355.13,0.00028788,30]
[421456722,1777697433000,-355.13,0.00028725,2]
[421456733,1777697433000,-355.38,0.00028852,7]
[421456738,1777697433000,-355.13,0.00028883,30]
[421456731,1777697433000,-355.38,0.0002882,2]
[421456729,1777697433000,-150.0,0.00028789,10]
[421456732,1777697433000,-355.13,0.00028852,7]
[421456745,1777697433000,-355.38,0.00028979,30]
[421456746,1777697433000,-355.13,0.0002901,2]
[421456735,1777697433000,-461.0,0.00028862,10]
[421456743,1777697433000,-355.38,0.00028947,7]
[421456741,1777697433000,-355.38,0.00028915,2]
[421456734,1777697433000,-924.0,0.00028862,10]
[421456739,1777697433000,-355.38,0.00028883,30]
[421456742,1777697433000,-355.13,0.00028947,7]
[421456717,1777697433000,-436.59778378,0.00028692,2]
[421456730,1777697433000,-355.13,0.0002882,2]
[421456712,1777697433000,-500.0,0.00028692,2]
[421456690,1777697433000,-293.0,0.00028205,5]
[421456719,1777697433000,-500.0,0.00028692,2]
[421456744,1777697433000,-355.13,0.00028979,30]
[421456685,1777697433000,-848.0,0.00027671,2]
[421456686,1777697433000,-152.63,0.00027671,2]
[421456691,1777697433000,-848.0,0.00028205,3]
[421456696,1777697433000,-1064.31316348,0.00028285,5]
[421456689,1777697433000,-556.81550109,0.00028166,2]
[421456692,1777697433000,-1053.48474914,0.00028285,5]
[421456688,1777697433000,-205.72,0.00028,2]
[421456695,1777697433000,-1052.11790866,0.00028285,5]
[421456687,1777697433000,-352.86137696,0.00027674,60]
[421456693,1777697433000,-1134.71503627,0.00028285,5]
[421456697,1777697433000,-1105.96930282,0.00028285,5]
[421456702,1777697433000,-1000.60153396,0.00028285,5]
[421456700,1777697433000,-1045.40790964,0.00028285,5]
[421456701,1777697433000,-1067.38917263,0.00028285,5]
[421456708,1777697433000,-355.38,0.0002863,2]
[421456705,1777697433000,-172.296289,0.00028286,14]
[421456698,1777697433000,-1005.63433812,0.00028285,5]
[421456699,1777697433000,-1126.27149354,0.00028285,5]
[421456706,1777697433000,-2000.0,0.00028447,2]
[421456703,1777697433000,-1138.92767599,0.00028285,5]
[421456707,1777697433000,-355.13,0.0002863,2]
[421456704,1777697433000,-172.296288,0.00028286,14]
[421456710,1777697433000,-355.38,0.00028661,7]
[421456720,1777697433000,-355.13,0.00028693,30]
[421456721,1777697433000,-355.38,0.00028693,30]
[421456711,1777697433000,-195.6762564,0.00028692,2]
[421456714,1777697433000,-180.65496753,0.00028692,2]
[421456737,1777697433000,-150.0,0.00028873,5]
[421456694,1777697433000,-1025.96699395,0.00028285,5]
[421456740,1777697433000,-355.13,0.00028915,2]
[421456776,1777697433000,-1167.66842463,0.000305,2]
[421456778,1777697433000,-299.0,0.000306,5]
[421456780,1777697433000,-155.32173415,0.000306,7]
[421456781,1777697433000,-1215.49642839,0.00030617,7]
[421456782,1777697433000,-848.0,0.00030875,6]
[421456790,1777697433000,-154.0,0.00031121,30]
[421456784,1777697433000,-160.0,0.00031,120]
[421456785,1777697433000,-150.0,0.00031011,2]
[421456791,1777697433000,-158.0,0.00031123,30]
[421456793,1777697433000,-390.0,0.00031123,30]
[421456794,1777697433000,-258.0,0.00031123,30]
[421456786,1777697433000,-152.0,0.0003112,4]
[421456789,1777697433000,-154.0,0.00031121,30]
[421456787,1777697433000,-159.0,0.00031121,30]
[421456792,1777697433000,-151.0,0.00031123,30]
[421456788,1777697433000,-154.0,0.00031121,30]
[421456795,1777697433000,-155.0,0.00031123,30]
[421456796,1777697433000,-153.0,0.00031123,30]
[421456798,1777697433000,-1167.66842459,0.00031256,2]
[421456801,1777697433000,-1167.66842459,0.00031633,2]
[421456804,1777697433000,-10122.11450875,0.00031693,2]
[421456799,1777697433000,-2000.0,0.00031291,2]
[421456797,1777697433000,-157.0,0.00031123,30]
[421456805,1777697433000,-5830.22285764,0.00031693,2]
[421456800,1777697433000,-848.0,0.00031409,6]
[421456802,1777697433000,-157.0974485,0.00031666,60]
[421456736,1777697433000,-899.0,0.00028862,10]
[421456775,1777697433000,-848.0,0.00030341,5]
[421456773,1777697433000,-555.916,0.00030178,25]
[421456803,1777697433000,-400.7887018,0.00031666,60]
[421456783,1777697433000,-1167.66842459,0.00030878,2]
[421456749,1777697433000,-355.38,0.00029042,7]
[421456748,1777697433000,-355.13,0.00029042,7]
[421456752,1777697433000,-355.13,0.00029105,2]
[421456758,1777697433000,-355.13,0.00029201,2]
[421456757,1777697433000,-355.38,0.00029169,30]
[421456747,1777697433000,-355.38,0.0002901,2]
[421456754,1777697433000,-355.13,0.00029137,7]
[421456750,1777697433000,-355.13,0.00029074,30]
[421456779,1777697433000,-155.48264158,0.000306,7]
[421456751,1777697433000,-355.38,0.00029074,30]
[421456755,1777697433000,-355.38,0.00029137,7]
[421456753,1777697433000,-355.38,0.00029105,2]
[421456756,1777697433000,-355.13,0.00029169,30]
[421456761,1777697433000,-355.38,0.00029232,7]
[421456759,1777697433000,-355.38,0.00029201,2]
[421456762,1777697433000,-301.0,0.00029273,5]
[421456771,1777697433000,-338.0,0.00030137,120]
[421456774,1777697433000,-166.331,0.00030178,25]
[421456772,1777697433000,-156.0,0.00030137,120]
[421456766,1777697433000,-150.0,0.00029534,2]
[421456767,1777697433000,-152.0,0.00029605,3]
[421456765,1777697433000,-268.18185945,0.00029442,60]
[421456777,1777697433000,-4440.67701355,0.00030575,120]
[421456763,1777697433000,-848.0,0.00029273,4]
[421456768,1777697433000,-848.0,0.00029807,4]
[421456769,1777697433000,-739.900993,0.00030029,2]
[421456760,1777697433000,-355.19,0.00029232,7]
[421456770,1777697433000,-817.0,0.00030137,120]
[421456764,1777697433000,-353.24859229,0.00029421,5]
[421456815,1777697437000,-355.33,0.00028756,7]
[421456822,1777697437000,-355.33,0.00028979,30]
[421456816,1777697437000,-355.33,0.00028788,30]
[421456819,1777697437000,-355.33,0.00028883,30]
[421456814,1777697437000,-355.33,0.00028725,2]
[421456823,1777697437000,-355.33,0.0002901,2]
[421456824,1777697437000,-18503.15179011,0.00031693,2]
[421456813,1777697437000,-355.33,0.00028693,30]
[421456811,1777697437000,-355.33,0.0002863,2]
[421456812,1777697437000,-355.33,0.00028661,7]
[421456818,1777697437000,-355.33,0.00028852,7]
[421456821,1777697437000,-355.33,0.00028947,7]
[421456817,1777697437000,-355.33,0.0002882,2]
[421456834,1777697437000,-1167.66842459,0.00032011,2]
[421456825,1777697437000,-20035.76286553,0.00031693,2]
[421456833,1777697437000,-1108.76494192,0.00032,30]
[421456830,1777697437000,-188.31669082,0.00032,120]
[421456826,1777697437000,-809.0,0.00031693,30]
[421456829,1777697437000,-3611.68,0.0003199,10]
[421456831,1777697437000,-356.80996855,0.00032,120]
[421456827,1777697437000,-931.0,0.00031693,30]
[421456832,1777697437000,-905.89293008,0.00032,14]
[421456828,1777697437000,-848.0,0.00031943,7]
[421456820,1777697437000,-355.33,0.00028915,2]
[421456847,1777697438000,-500.0,0.00032329,21]
[421456852,1777697438000,-848.0,0.00032477,7]
[421456866,1777697438000,-4340.56980146,0.00032877,2]
[421456868,1777697438000,-977.87191767,0.00032883,2]
[421456854,1777697438000,-150.0,0.00032562,2]
[421456860,1777697438000,-151.0,0.00032877,7]
[421456874,1777697438000,-105.77942305,0.00033,120]
[421456872,1777697438000,-188.31669082,0.00033,120]
[421456849,1777697438000,-1167.66842459,0.00032389,2]
[421456856,1777697438000,-152.0,0.00032635,5]
[421456845,1777697438000,-157.0,0.00032123,30]
[421456839,1777697438000,-158.0,0.00032123,30]
[421456843,1777697438000,-155.0,0.00032123,30]
[421456844,1777697438000,-153.0,0.00032123,30]
[421456846,1777697438000,-500.0,0.00032329,21]
[421456850,1777697438000,-197.65,0.00032397,2]
[421456842,1777697438000,-258.0,0.00032123,30]
[421456841,1777697438000,-390.0,0.00032123,30]
[421456840,1777697438000,-151.0,0.00032123,30]
[421456838,1777697438000,-154.0,0.00032121,30]
[421456835,1777697438000,-159.0,0.00032121,30]
[421456836,1777697438000,-154.0,0.00032121,30]
[421456837,1777697438000,-154.0,0.00032121,30]
[421456848,1777697438000,-1033.06,0.00032346,2]
[421456862,1777697438000,-151.0,0.00032877,7]
[421456858,1777697438000,-1167.66842459,0.00032767,2]
[421456878,1777697438000,-150.0,0.00033,14]
[421456870,1777697438000,-5059.79,0.000329,30]
[421456921,1777697438000,-1145.75000001,0.000333,2]
[421456920,1777697438000,-867.03293673,0.000333,2]
[421456919,1777697438000,-412.85700966,0.00033172,88]
[421456918,1777697438000,-267.29005361,0.00033144,2]
[421456914,1777697438000,-155.0,0.00033123,30]
[421456913,1777697438000,-258.0,0.00033123,30]